Workbook

Sheet Fr. Moore (hidden)
A1: PARISH ASSESSMENT
E3: Below Benchmark | F3: Meets Benchmark | G3: Above Benchmark
A4: FOCUS | B4: DOMAIN | C4: Claim | D4: INDICATOR | E4: 0 | F4: 1 | G4: 2 | H4: SCORE | I4: Notes / Comments / Evidence
A5: Viability | B5: Financial Standards | C5: The parish is financially stable. | D5: The percent of ordinary expenses paid from ordinary income | E5: <70% | F5: 70 - 95% | G5: >95%
A6: Viability | B6: Financial Standards | C6: The parish is financially stable. | D6: Rate of increase of ordinary income vs. rate of increase of inflation rate | E6: <75% | F6: 75 - 100% | G6: >100%
A7: Viability | B7: Financial Standards | C7: The parish is financially stable. | D7: Ability to pay priest | E7: No | F7: Yes
A8: Viability | B8: Financial Standards | C8: The parish is financially stable. | D8: Ability to pay for PAA | E8: No | F8: Yes
A9: Viability | B9: Financial Standards | C9: The parish is financially stable. | D9: Ability to provide staff raises/stick to Archdiocesan pay windows | E9: No | F9: Yes
A10: Viability | B10: Financial Standards | C10: The parish is financially stable. | D10: Percent of income from top 5 donors | E10: >40% from top five | F10: 40-20% from top five | G10: <20% from top five
A11: Viability | B11: Financial Standards | C11: The parish is financially stable. | D11: Ability to carry out preventative maintenance | E11: No | F11: Yes
A12: Viability | B12: Financial Standards | C12: The parish is financially stable. | D12: Is current on Archdiocesan assessments, debt service, etc. | E12: Not servicing | F12: Servicing on schedule | G12: Paying more
A13: Vitality | B13: Sacramental participation | C13: The parish is growing. | D13: Median overall Mass attendance | E13: <225/100,000 | F13: 225/100,000 to 375/100,000 | G13: >375/100,000
A14: Vitality | B14: Sacramental participation | C14: The parish is growing. | D14: Rate of increase/decrease in overall Sunday Mass attendance | E14: Below population growth rate | F14: Equals population growth rate | G14: Exceeds population growth rate
D15: Mass attendance:Church capacity
A16: Vitality | B16: Giving | C16: Stewardship is growing. | D16: Number of financially contributing parish members as a percentage of overall Mass attendance | E16: <50% | F16: 50-75% | G16: >75%
A17: Vitality | B17: Giving | C17: Stewardship is growing. | D17: Increase/decrease in financially contributing parish members | E17: Below population growth rate | F17: Equals population growth rate | G17: Exceeds population growth rate
A18: Vitality | B18: Sacramental outcomes | C18: Sacramental participation is growing. | D18: Conversion rate (RCIA:registered households)
A19: Vitality | B19: Sacramental outcomes | C19: Sacramental participation is growing. | D19: First-time weddings
A20: Vitality | B20: Sacramental outcomes | C20: Sacramental participation is growing. | D20: Convalidations
A21: Vitality | B21: Sacramental outcomes | C21: Sacramental participation is growing. | D21: First Communions as a percentage of infant Baptisms
A22: Vitality | B22: Sacramental outcomes | C22: Sacramental participation is growing. | D22: Confirmations as a percentage of First Communions
A23: Vitality | B23: Sacramental outcomes | C23: Sacramental participation is growing. | D23: New entries into the Church as a percentage of funerals
A24: Vitality | B24: Sacramental outcomes | C24: Sacramental participation is growing. | D24: Weddings as a percentage of funerals
A25: Vitality | B25: Prayer | C25: Prayer is growing. | D25: Number of person-hours spend in Adoration each week
A26: Vitality | B26: Prayer | C26: Prayer is growing. | D26: Number of person-hours spent in small group/Bible study each week
A27: Vitality | B27: Prayer | C27: Prayer is growing. | D27: Number of person-hours spent in direct-impact service each week

Sheet 2nd Iteration (hidden)
A1: PARISH ASSESSMENT
B3: Below Benchmark | C3: Meets Benchmark | D3: Above Benchmark
B4: 0 | C4: 1 | D4: 2 | E4: SCORE | F4: Notes / Comments / Evidence
A6: Financial Standard: The parish is a stable or improving financial operation.
A7: Ordinary income (5-year trend) | B7: Up 1-2 years | C7: Up 3 years | D7: Up 4 years
A8: Ordinary income relative to salaries and benefits | B8: down last 5 years | C8: 0-2% up last 5 years | D8: 2% avg. last 5 years
A9: Collection revenues: percent of change each year
A10: Percent of ordinary expenses paid from ordinary income | B10: <70% | C10: 70 - 95% | D10: >95%
A11: Change in ordinary income relative to change in inflation | B11: <75% of inflation rate | C11: 75 - 100% of inflation rate | D11: >100% of inflation rate
A12: Reliant on major donors | B12: Yes | C12: No
A13: Personnel: Number of full-time staff | B13: TBD | C13: TBD
A14: Personnel: Number of part-time personnel | B14: TBD | C14: TBD
A15: Personnel: Ability to pay priest | B15: No | C15: Yes
A16: Personnel: Ability to pay PAA | B16: No | C16: Yes
A17: Personnel: Ability to provide staff raises/adhere to Archdiocesan pay windows | B17: No | C17: Yes
A18: Facilities: Carrying out preventative maintenance | B18: No | C18: Yes
A19: Facilities: Deferred maintenance as a percent of ordinary income | B19: >20% | C19: 20-10% | D19: <10%
A20: Ability to cover obligations in the next 12 months | B20: No | C20: Yes
A21: Activity toward Archdiocesan assessments, debt service, insurance, etc. | B21: Not servicing | C21: Servicing on time | D21: Paying over
A22: Parish averages a net surplus (as a percent of ordinary income) over the past three years | B22: Negative | C22: Breaken to 10% | D22: >10%
A23: Rental income as a percent of overall income | B23: >25% | C23: 10%-24% | D23: <10%
A24: Investments from overall income in capital improvement projects, proactive maintenance or savings | B24: <3% | C24: 3-5% | D24: >5%
A25: Parish debt as a percent of annual income | B25: >40% | C25: 30-40% | D25: <30%
A26: Months of expenditures on hand in liquid savings (Cash / PRF) | B26: <3 months | C26: 3-6 months | D26: >6 months
A28: Leadership Standard: The parish has some structure of lay leadership.
A29: Established Pastoral Council | B29: Does not exist | C29: Exists
A30: Established Finance Council | B30: Does not exist | C30: Exists
A32: Growth Standard: The parish is a stable or growing local faith community.
A33: Three-year trend
A34: Mass attendance (Avg. weekly October) per capita* | B34: Decreasing | C34: Stable | D34: Increasing
A35: Registered households per capita* | B35: Decreasing | C35: Stable | D35: Increasing
A36: Financially contributing parish members per capita* | B36: Decreasing | C36: Stable | D36: Increasing
A37: Mass attendance relative to church capacity | B37: Decreasing | C37: Stable | D37: Increasing
A38: Financially contributing parish members relative to overall Mass attendance | B38: Decreasing | C38: Stable | D38: Increasing
A40: Discipleship Formation Standard: The parish attracts and forms disciples.
A41: Established discipleship ministries | B41: Do not exist | C41: Exist | D41: Exist
A42: Established works of charity and outreach ministries | B42: Do not exist | C42: Exist | D42: Exist
A43: Established religious education / formation programs | B43: Do not exist | C43: Exist | D43: Exist
A44: Hours of Eucharistic Adoration in absolute numbers | B44: 0 | C44: >0
A45: Change in hours of Eucharistic Adoration | B45: Decreasing | C45: Stable | D45: Increasing
A46: Three year trend
A47: Baptisms per capita | B47: Decreasing | C47: Stable | D47: Increasing
A48: Professions of Faith per capita | B48: Decreasing | C48: Stable | D48: Increasing
A49: Confirmations per capita | B49: Decreasing | C49: Stable | D49: Increasing
A50: First Communions per capita | B50: Decreasing | C50: Stable | D50: Increasing
A51: Anointing of the Sick per capita | B51: Decreasing | C51: Stable | D51: Increasing
A52: Reconciliations per capita | B52: Decreasing | C52: Stable | D52: Increasing
A53: Weddings per capita | B53: Decreasing | C53: Stable | D53: Increasing
A54: Funerals per capita | B54: Decreasing | C54: Stable | D54: Increasing
A55: Total Sacraments per capita | B55: Decreasing | C55: Stable | D55: Increasing
A57: * Per capita = (N / total population within parish boundary) * 100

Sheet Cover sheet
A1: Deanery ID | D1: 6
A2: Deanery Name | D2: South Seattle
A3: Parish ID: | D3: St Patrick
A4: Parish Name, City: | D4: Seattle
A6: Tool version #: | B6: 1
A8: Revision tracking log
A10: Revision # | B10: Date | C10: Completed by | D10: Notes and changes | E10: Data missing/ needed to complete PVI | F10: Filename suffix
B11: 2021-03-08 | C11: Elijah | D11: Integrated 2020 info + updated notes

Sheet Parish Vitality Index
A1: Section of PAR | B1: PARISH VITALITY INDEX - Parish Name, City (ID #)
B3: School is affiliated with this parish (Y/N) | C3: No
C5: Below Benchmark | D5: Meets Benchmark | E5: Above Benchmark
C6: 0 | D6: 1 | E6: 2 | F6: FY 15-16 | G6: FY 16-17 | H6: FY 17-18 | I6: FY 18-19 | J6: FY 19-20 | K6: Stats
B8: Growth Standard: The parish is a stable or growing local faith community. | M8: Benchmark | N8: Score
A9: (heading) | B9: Five year trend | M9: =N9/M11 -> 0% | N9: =SUM(N10:N15) -> 0
A10: Mass Spreadsheet | B10: Mass attendance (Avg. weekly October) | C10: Limited/Decreasing | D10: Stable | E10: Increasing | F10: ='[1]Parish Vitality Index'!G10 -> 239 | G10: ='[1]Parish Vitality Index'!H10 -> 224 | H10: ='[1]Parish Vitality Index'!I10 -> 225 | I10: ='[1]Parish Vitality Index'!J10 -> 203 | J10: 44 | M10: w/o school | N10: =((GetColorCount(C10:E10,D5)*1)+(GetColorCount(C10:E10,E5)*2)) -> 0
A11: (above line divided by # weekend Masses) | B11: Ave Attendance per Mass | C11: Limited/Decreasing | D11: Stable | E11: Increasing | F11: ='[1]Parish Vitality Index'!G11 -> 120 | G11: ='[1]Parish Vitality Index'!H11 -> 112 | H11: ='[1]Parish Vitality Index'!I11 -> 113 | I11: ='[1]Parish Vitality Index'!J11 -> 102 | J11: =J10/$K$11 -> 22 | K11: 2 | L11: # weekly Masses | M11: =5 -> 5 | N11: =((GetColorCount(C11:E11,D6)*1)+(GetColorCount(C11:E11,E6)*2)) -> 0
A12: Demo - B-1 | B12: Registered households | C12: Limited/Decreasing | D12: Stable | E12: Increasing | F12: ='[1]Parish Vitality Index'!G12 -> 296 | G12: ='[1]Parish Vitality Index'!H12 -> 293 | H12: ='[1]Parish Vitality Index'!I12 -> 247 | I12: ='[1]Parish Vitality Index'!J12 -> 254 | J12: 217 | M12: w/school | N12: =((GetColorCount(C12:E12,D5)*1)+(GetColorCount(C12:E12,E5)*2)) -> 0
A13: Demo - B-4 (divided by B-1) | B13: % of households who contribute financially | C13: Limited/Decreasing | D13: Stable | E13: Increasing | F13: ='[1]Parish Vitality Index'!G13 -> 83% | G13: ='[1]Parish Vitality Index'!H13 -> 68% | H13: ='[1]Parish Vitality Index'!I13 -> 77% | I13: ='[1]Parish Vitality Index'!J13 -> 54% | J13: =168/J12 -> 77% | M13: 6 | N13: =((GetColorCount(C13:E13,D5)*1)+(GetColorCount(C13:E13,E5)*2)) -> 0
A14: Demo - D1 / Mass Attendance | B14: % church occupancy during average weekend Mass | C14: Limited/Decreasing | D14: Stable | E14: Increasing | F14: =F11/$K$14 -> 33% | G14: 31% | H14: =H11/$K$14 -> 31% | I14: =I11/$K$14 -> 28% | J14: 6% | K14: 360 | L14: Capacity of Church | N14: =((GetColorCount(C14:E14,D5)*1)+(GetColorCount(C14:E14,E5)*2)) -> 0
A15: Office of Catholic Schools | B15: School Enrollment | C15: Limited/Decreasing | D15: Stable | E15: Increasing | K15: n/a
B17: Discipleship Formation Standard: The parish attracts and forms disciples. | M17: Benchmark | N17: Score
M18: =N18/M20 -> 65% | N18: =SUM(N19:N45) -> 17
A19: Demo - E & G | B19: Established evangelization effort for adults - Variety of formation/pastoral/outreach programs (Y/N) | C19: Do not exist | D19: Exist | E19: Exist | F19: yes | G19: yes | H19: yes | I19: yes | J19: yes | M19: w/o school | N19: =((GetColorCount(C19:E19,D5)*1)+(GetColorCount(C19:E19,E5)*2)) -> 1
A20: Demo - E & G (youth ministry under Pastoral Ministries | B20: Established evangelization effort for youth - Youth Ministry (Y/N) | C20: Do not exist | D20: Exist | E20: Exist | F20: no | G20: yes | H20: no | I20: no | J20: yes | M20: 26 | N20: =((GetColorCount(C20:E20,D5)*1)+(GetColorCount(C20:E20,E5)*2)) -> 1
A21: Demo - G-2 (faith formation) | B21: # Active Faith Formation programs (# checked out of 6) | C21: Limited/Decreasing | D21: Stable | E21: Increasing | F21: 4 | G21: 3 | H21: 3 | I21: 3 | J21: 3 | M21: w/school | N21: =((GetColorCount(C21:E21,D5)*1)+(GetColorCount(C21:E21,E5)*2)) -> 1
A22: Demo - G-2 (sacramental prep) | B22: # Active Sacramental Prep Programs (# Checked out of 7) | C22: Limited/Decreasing | D22: Stable | E22: Increasing | F22: 5 | G22: 4 | H22: 4 | I22: 3 | J22: 6 | M22: 28 | N22: =((GetColorCount(C22:E22,D5)*1)+(GetColorCount(C22:E22,E5)*2)) -> 2 | Q22: 2020 score | R22: Benchmark | S22: % of Benchmark
A23: Demo - G-1 | B23: Stewardshop Commission? (Y/N) | C23: Limited/Decreasing | D23: Exist | E23: Exist | F23: no | G23: no | H23: no | I23: no | J23: no | N23: =((GetColorCount(C23:E23,D5)*1)+(GetColorCount(C23:E23,E5)*2)) -> 0 | P23: Growth | Q23: =N9 -> 0 | R23: =M11 -> 5 | S23: =M9 -> 0%
A24: Demo - G-2 (pastoral ministries) | B24: # Active Pastoral Ministries (# Checked out of 13) | C24: Limited/Decreasing | D24: Stable | E24: Increasing | F24: 4 | G24: 4 | H24: 5 | I24: 4 | J24: 4 | N24: =((GetColorCount(C24:E24,D5)*1)+(GetColorCount(C24:E24,E5)*2)) -> 1 | P24: Disciple Formation | Q24: =N18 -> 17 | R24: =M20 -> 26 | S24: =M18 -> 65%
A25: Demo - G-2 (outreach/social justice) | B25: # Active Outreach/Social Justice Ministries (# Checked out of 15) | C25: Limited/Decreasing | D25: Stable | E25: Increasing | F25: 9 | G25: 9 | H25: 12 | I25: 14 | J25: 12 | N25: =((GetColorCount(C25:E25,D5)*1)+(GetColorCount(C25:E25,E5)*2)) -> 2 | P25: Liturgy | Q25: =N50 -> 2 | R25: =M52 -> 3 | S25: =M50 -> 67%
A26: Demo - G-2 | B26: Regular activities encouraging parishioners to Pray, Give and Serve (Y/N) | C26: Limited/Decreasing | D26: Exist | E26: Exist | F26: yes | G26: yes | H26: yes | I26: yes | J26: yes | N26: =((GetColorCount(C26:E26,D5)*1)+(GetColorCount(C26:E26,E5)*2)) -> 1 | P26: Leadership | Q26: =N57 -> 4 | R26: =M59 -> 3 | S26: =M57 -> 133%
A27: Demo - E (participants) | B27: Established religious education / formation programs (Y/N) | C27: Limited/Decreasing | D27: Exist | E27: Exist | F27: yes | G27: yes | H27: yes | I27: yes | J27: yes | N27: =((GetColorCount(C27:E27,D5)*1)+(GetColorCount(C27:E27,E5)*2)) -> 1 | P27: Finance | Q27: =N65 -> 10 | R27: =M67 -> 16 | S27: =M65 -> 63%
A28: Demo - E (participants) | B28: # Children (preschool - 6th grade) in religious ed program | C28: Limited/Decreasing | D28: Stable | E28: Increasing | F28: =4+7+6 -> 17 | G28: =6+5+6 -> 17 | H28: =5+7+8 -> 20 | I28: =5+7+8 -> 20 | J28: =2+5+5 -> 12 | N28: =((GetColorCount(C28:E28,D5)*1)+(GetColorCount(C28:E28,E5)*2)) -> 0
A29: Demo - E (participants) | B29: # Teens (7th - 12th) grade in religious ed program | C29: Limited/Decreasing | D29: Stable | E29: Increasing | F29: =8 -> 8 | G29: =6 -> 6 | H29: =5 -> 5 | I29: 4 | J29: =7 -> 7 | N29: =((GetColorCount(C29:E29,D5)*1)+(GetColorCount(C29:E29,E5)*2)) -> 0
A30: Demo - E (participants) | B30: # participating in Young Adult education opportunities | C30: Limited/Decreasing | D30: Stable | E30: Increasing | F30: 0 | G30: 0 | H30: 0 | I30: 0 | J30: 0 | N30: =((GetColorCount(C30:E30,D5)*1)+(GetColorCount(C30:E30,E5)*2)) -> 0
A31: Demo - E (participants) | B31: # participating in Adult education/formation opportunities | C31: Limited/Decreasing | D31: Stable | E31: Increasing | F31: 150 | G31: 200 | H31: 100 | I31: 100 | J31: 60 | N31: =((GetColorCount(C31:E31,D5)*1)+(GetColorCount(C31:E31,E5)*2)) -> 0
A32: Demo - E (catechists) | B32: # Paid Staff Compared to # Volunteers teaching Religious Ed programs | C32: Decreasing vol. engagement | D32: Stable volunteer engagement | E32: Increasing vol. engagement | F32: 01:09:00 | G32: 01:10:00 | H32: 02:07:00 | I32: 01:06:00 | J32: 02:08:00 | N32: =((GetColorCount(C32:E32,D5)*1)+(GetColorCount(C32:E32,E5)*2)) -> 0
A33: Demo - C-EUCHARISTIC ADORATION | B33: Established hours of Eucharistic Adoration | C33: Do not exist | D33: Exist | E33: Exist | F33: 0 | G33: 0 | H33: 0 | I33: 0 | J33: 0 | N33: =((GetColorCount(C33:E33,D5)*1)+(GetColorCount(C33:E33,E5)*2)) -> 0
A34: (heading) | B34: Sacraments (Five year trend)
A35: Demo - A-1 | B35: Baptisms (total) | C35: Limited/Decreasing | D35: Stable | E35: Increasing | F35: 7 | G35: 6 | H35: 4 | I35: 1 | J35: 3 | N35: =((GetColorCount(C35:E35,D5)*1)+(GetColorCount(C35:E35,E5)*2)) -> 0
A36: Demo - A-2 | B36: RCIA/ Professions of Faith | C36: Limited/Decreasing | D36: Stable | E36: Increasing | F36: 0 | G36: 1 | H36: 1 | I36: 0 | J36: 0 | L36: =J51/F51 -> 58% | N36: =((GetColorCount(C36:E36,D5)*1)+(GetColorCount(C36:E36,E5)*2)) -> 0
A37: Demo - A-3 | B37: First Communions (incl adult) | C37: Limited/Decreasing | D37: Stable | E37: Increasing | F37: 1 | G37: 9 | H37: 10 | I37: 0 | J37: 0 | N37: =((GetColorCount(C37:E37,D5)*1)+(GetColorCount(C37:E37,E5)*2)) -> 0
A38: Demo - A-4 | B38: Confirmations (incl Adults) | C38: Limited/Decreasing | D38: Stable | E38: Increasing | F38: 0 | G38: 4 | H38: 0 | I38: 0 | J38: 16 | N38: =((GetColorCount(C38:E38,D5)*1)+(GetColorCount(C38:E38,E5)*2)) -> 2
A39: Demo - A-8 | B39: Anointing of the Sick | C39: Limited/Decreasing | D39: Stable | E39: Increasing | F39: 15 | G39: 50 | H39: 55 | I39: 35 | J39: 485 | N39: =((GetColorCount(C39:E39,D5)*1)+(GetColorCount(C39:E39,E5)*2)) -> 2
A40: Demo - A-9 | B40: Reconciliations (Month X 12) plus Penance services | C40: Limited/Decreasing | D40: Stable | E40: Increasing | F40: =24+65 -> 89 | G40: =12+35 -> 47 | H40: 64 | I40: 64 | J40: 70 | N40: =((GetColorCount(C40:E40,D5)*1)+(GetColorCount(C40:E40,E5)*2)) -> 0
A41: Demo - A-10 | B41: Weddings | C41: Limited/Decreasing | D41: Stable | E41: Increasing | F41: 5 | G41: 2 | H41: 3 | I41: 2 | J41: 1 | N41: =((GetColorCount(C41:E41,D5)*1)+(GetColorCount(C41:E41,E5)*2)) -> 0
A42: Demo - A-6 | B42: Funerals | C42: Limited/Decreasing | D42: Stable | E42: Increasing | F42: 4 | G42: 6 | H42: 1 | I42: 5 | J42: 4 | N42: =((GetColorCount(C42:E42,D5)*1)+(GetColorCount(C42:E42,E5)*2)) -> 1
A43: Demo - E (participants) | B43: Established ministries for ethnicities (Y/N) | C43: Do not exist | D43: Exist | E43: Exist | F43: no | G43: no | H43: no | I43: ? | J43: no | N43: =((GetColorCount(C43:E43,D5)*1)+(GetColorCount(C43:E43,E5)*2)) -> 0
A44: Demo - C-MASSES CELEBRATED | B44: Non-English Masses (Y/N) List Languages | C44: Do not exist | D44: Exist | E44: Exist | F44: Y - ASL | G44: Y - ASL | H44: no | I44: no | J44: Y - ASL | N44: =((GetColorCount(C44:E44,D5)*1)+(GetColorCount(C44:E44,E5)*2)) -> 1
A45: Demo - E (participants) | B45: Non-English Religious Education (Y/N) List Languages | C45: Do not exist | D45: Exist | E45: Exist | F45: Y - ASL | G45: Y - ASL | H45: Y - ASL | I45: ? | J45: Y - ASL | N45: =((GetColorCount(C45:E45,D5)*1)+(GetColorCount(C45:E45,E5)*2)) -> 1
A46: Office of Catholic Schools | B46: School principal has received Level 1 "Christ in the Classroom" Certification (Y/N) | C46: no | D46: yes | K46: n/a
A47: Office of Catholic Schools | B47: # of teachers with Level 2 "Christ in the Classroom" Certification | C47: Limited/Decreasing | D47: Stable | E47: Increasing | K47: n/a
B49: Liturgy Standard: The parish engages the faithful in the Liturgy | M49: Benchmark | N49: Score
B50: Liturgical forms (GIRM or Many Gifts, One Spirit) | M50: =N50/M52 -> 67% | N50: =((GetColorCount(C51:E54,D5)*1)+(GetColorCount(C51:E54,E5)*2)) -> 2
A51: Demo - C-LITURGICAL MINISTRIES | B51: # Serving as Eucharistic Ministers, Lectors, Ushers and Sacristans | C51: Limited/Decreasing | D51: Stable | E51: Increasing | F51: =47+18+15+7+5+17 -> 109 | G51: =38+20+10+5+5+20 -> 98 | H51: =44+25+12+9+13 -> 103 | I51: =44+25+12+9+13+3 -> 106 | J51: =33+18+8+4 -> 63 | M51: w/o school | N51: =((GetColorCount(C51:E51,D5)*1)+(GetColorCount(C51:E51,E5)*2)) -> 0
A52: Demo - C-LITURGICAL MINISTRIES | B52: # Serving as Altar Servers | C52: Limited/Decreasing | D52: Stable | E52: Increasing | F52: 0 | G52: 0 | H52: 0 | I52: 0 | J52: 0 | M52: 3 | N52: =((GetColorCount(C52:E52,D6)*1)+(GetColorCount(C52:E52,E6)*2)) -> 0
A53: Demo - C-LITURGICAL MINISTRIES | B53: # Serving in choir or as cantors (musicians participating in music ministry) | C53: Limited/Decreasing | D53: Stable | E53: Increasing | F53: =26+12 -> 38 | G53: =12+27 -> 39 | H53: =31+14 -> 45 | I53: =14+31 -> 45 | J53: =30+14 -> 44 | M53: w/school | N53: =((GetColorCount(C53:E53,D5)*1)+(GetColorCount(C53:E53,E5)*2)) -> 2
A54: Office of Catholic Schools | B54: # of school Masses per month | C54: Limited/Decreasing | D54: Stable | E54: Increasing | K54: n/a
M55: 4
B56: Leadership Standard: The parish has some structure of lay leadership. | M56: Benchmark | N56: Score
M57: =N57/M59 -> 133% | N57: =SUM(N58:N62) -> 4
A58: Demo - G-1 | B58: Pastoral Council (# members) | C58: Limited/Decreasing | D58: Stable | E58: Increasing | F58: 9 | G58: 8 | H58: 8 | I58: 8 | J58: 9 | M58: w/o school | N58: =((GetColorCount(C58:E58,D5)*1)+(GetColorCount(C58:E58,E5)*2)) -> 1
A59: Demo - G-1 | B59: Finance Council (# members) | C59: Limited/Decreasing | D59: Stable | E59: Increasing | F59: 5 | G59: 5 | H59: 5 | I59: 5 | J59: 5 | M59: 3 | N59: =((GetColorCount(C59:E59,D5)*1)+(GetColorCount(C59:E59,E5)*2)) -> 1
A60: Demo - G-1 | B60: # total Councils and Commissions (# checked out of 9) | C60: Limited/Decreasing | D60: Stable | E60: Increasing | F60: 5 | G60: 3 | H60: 5 | I60: 5 | J60: 6 | M60: w/school | N60: =((GetColorCount(C60:E60,D5)*1)+(GetColorCount(C60:E60,E5)*2)) -> 2
A61: Office of Catholic Schools | B61: School Commission (# members) | C61: Limited/Decreasing | D61: Stable | E61: Increasing | K61: n/a | M61: 5
A62: Office of Catholic Schools | B62: School Finance Commission (# members) | C62: Limited/Decreasing | D62: Stable | E62: Increasing | K62: n/a
B64: Financial Standard: The parish is a stable or improving financial operation. | M64: Benchmark | N64: Score
B65: Five-year trend | M65: =N65/M67 -> 63% | N65: =SUM(N66:N86) -> 10
A66: II-A: FIN - Summary of Operations | B66: Total Revenue (Summary of Operations Table) | C66: Negative | D66: Break even to 10% | E66: >10% increase | F66: 435,895 | G66: 437,455 | H66: 451,582 | I66: 464,464 | J66: $517,286 | M66: w/o school | N66: =((GetColorCount(C66:E66,D5)*1)+(GetColorCount(C66:E66,E5)*2)) -> 2
A67: II-A: FIN - Summary of Operations | B67: Salaries + benefits / Total Revenue (Summary of Operations Table) | C67: down last 5 years | D67: 0-2% up last 5 years | E67: 2% avg. last 5 years | F67: =(169717+86907)/F66 -> 59% | G67: =(178828+38091)/G66 -> 50% | H67: =(191663+37596)/H66 -> 51% | I67: =(190860+41316)/I66 -> 50% | J67: =(117910+23636)/J66 -> 27% | L67: =J66-J76 -> $424,159 | M67: 16 | N67: =((GetColorCount(C67:E67,D5)*1)+(GetColorCount(C67:E67,E5)*2)) -> 0
A68: II-A: FIN - Summary of Operations | B68: Total expenses / Total Revenue (Summary of Operations Table) | C68: >95% | D68: 70 - 95% | E68: <70% | F68: =470811/F66 -> 108% | G68: =388917/G66 -> 89% | H68: =413791/H66 -> 92% | I68: =432675/I66 -> 93% | J68: =434508/J66 -> 84% | M68: w/school | N68: =((GetColorCount(C68:E68,D5)*1)+(GetColorCount(C68:E68,E5)*2)) -> 1
A69: (look at trend) | B69: Five Year Trend Expenses/Income | C69: Expenses outpace income | D69: Growth of expense and income matches | E69: Income outpaces expenses | M69: 18 | N69: =((GetColorCount(C69:E69,D5)*1)+(GetColorCount(C69:E69,E5)*2)) -> 0
A70: II-A: FIN - Summary of Operations | B70: Net Revenue (or Loss) | C70: Negative | D70: Break even to 10% | E70: >10% | F70: =F66-470811 -> -34,916 | G70: =G66-388917 -> 48,538 | H70: =H66-413791 -> 37,791 | I70: =I66-432675 -> 31,789 | J70: $82,778 | N70: =((GetColorCount(C70:E70,D5)*1)+(GetColorCount(C70:E70,E5)*2)) -> 1
A71: II-A: FIN - Summary of Operations | B71: Operations & maintenance Expense / Total Revenue | C71: >20% | D71: 20-10% | E71: <10% | F71: =38199/F66 -> 9% | G71: =13094/G66 -> 3% | H71: =14788/H66 -> 3% | I71: =13757/I66 -> 3% | J71: =25844/J66 -> 5% | N71: =((GetColorCount(C71:E71,D5)*1)+(GetColorCount(C71:E71,E5)*2)) -> 2
A72: II-A: FIN - Summary of Operations | B72: Rental & Lease income / Total Revenue | C72: >25% | D72: 10%-24% | E72: <10% | F72: =(11230+14400)/F66 -> 6% | G72: =(7851+20884)/G66 -> 7% | H72: =27881/H66 -> 6% | I72: =22621/I66 -> 5% | J72: =22386/J66 -> 4% | N72: =((GetColorCount(C72:E72,D5)*1)+(GetColorCount(C72:E72,E5)*2)) -> 2
A73: II-A: FIN - Summary of Operations | B73: Collection Revenue / Total Revenue | C73: Benchmarks missing | F73: =F74/F66 -> 75% | G73: =G74/G66 -> 75% | H73: =H74/H66 -> 78% | I73: =I74/I66 -> 73% | J73: =324252/J66 -> 63%
A74: (look at trend) | B74: Collection revenues: percent of change each year | C74: 0 or down | D74: 1-2% increase | F74: 325,331 | G74: 330,222 | H74: 350,721 | I74: 338,351 | J74: 324252 | N74: =((GetColorCount(C74:E74,D5)*1)+(GetColorCount(C74:E74,E5)*2)) -> 0
F75: n/a | G75: =(G74/F74)-1 -> 2% | H75: =(H74/G74)-1 -> 6% | I75: =(I74/H74)-1 -> -4% | J75: =(J74/I74)-1 -> -4.17%
A76: III FIN: Planned Giving | B76: Amount in Planned Giving Agreements | C76: None/Decreasing | D76: Stable | E76: Increasing | F76: none | G76: none | H76: none | I76: none | J76: $93,127 | N76: =((GetColorCount(C76:E76,D5)*1)+(GetColorCount(C76:E76,E5)*2)) -> 2
A77: Profit & Loss Statement:add up all Lay | B77: Personnel: Lay Salaries | C77: Benchmarks missing | F77: =33476+11388+41054+14365+29685 -> 129,968 | G77: not avail | H77: not avail | I77: not avail | J77: $117,910
A78: Profit & Loss Statement:add up Clergy + extra clergy | B78: Personnel - Clergy - Total clergy compensation | C78: Benchmarks missing | F78: =28705+818 -> 29,523 | G78: not avail | H78: not avail | I78: not avail | J78: not avail
A79: (look at trend) | B79: Personnel: Ability to provide staff raises/adhere to Archdiocesan pay windows (Y/N) | C79: No | D79: Yes | F79: yes | G79: yes | H79: yes | I79: no | J79: no | N79: =((GetColorCount(C79:E79,D5)*1)+(GetColorCount(C79:E79,E5)*2)) -> 0
A81: Scott Bader | B81: Facilities: Parish Reported deferred maintenance | C81: Benchmarks missing | F81: Parish has reported numerous facilities maintenance repairs
A82: Scott Bader | B82: Facilities: Parish has engaged a consultant to confirm /determine deferred maintenance amt (Y/N) | C82: No | D82: Yes | F82: No | N82: =((GetColorCount(C82:E82,D5)*1)+(GetColorCount(C82:E82,E5)*2)) -> 0
A83: PAR: P & L for parish | B83: Facilities: Deferred maintenance / Ordinary Income | C83: Benchmarks missing
A85: PAR: P & L for parish | B85: School: School Ordinary Income/Total Expenses | C85: Benchmarks missing | K85: n/a
A86: PAR: P & L for parish | B86: Schools: Tuition Revenue/Teacher Salaries and Benefits | C86: Benchmarks missing | K86: n/a

Sheet Mass Attendance
A1: DID | B1: Deanery | C1: PID | D1: Parish Name
A2: 6 | B2: South Seattle | C2: 29 | D2: St. Patrick, Seattle
A5: Year | B5: Mass count
A6: 1995 | B6: 390
A7: 1996 | B7: 358
A8: 1997 | B8: 376
A9: 1998 | B9: 370
A10: 1999 | B10: 293
A11: 2000 | B11: 269
A12: 2001 | B12: 270
A13: 2002 | B13: 277
A14: 2003 | B14: 268
A15: 2004 | B15: 248
A16: 2005 | B16: 240
A17: 2006 | B17: 262
A18: 2007 | B18: 228
A19: 2008 | B19: 264
A20: 2009 | B20: 243
A21: 2010 | B21: 260
A22: 2011 | B22: 251
A23: 2012 | B23: 264
A24: 2013 | B24: 262
A25: 2014 | B25: 241
A26: 2015 | B26: 239
A27: 2016 | B27: 224
A28: 2017 | B28: 225
A29: 2018 | B29: 203
A30: 2019 | B30: 189
A31: 2020 | B31: 44

Sheet Ordinary Income
A1: DID | B1: Deanery | C1: PID | D1: Parish Name
A2: 6 | B2: South Seattle | C2: 29 | D2: St. Patrick, Seattle
A5: FY | B5: Ordinary Income
A6: 15-16 | B6: $316,700
A7: 16-17 | B7: $321,312
A8: 17-18 | B8: $336,979
A9: 18-19 | B9: $330,041
A10: 19-20 | B10: $321,507

Sheet Parish Metrics
A1: PID | B1: 029
A2: Parish | B2: ST PATRICK, SEATTLE
A3: OI (3 year avg) | B3: 330,041
A4: NON OI Revenue | B4: 26%
A5: HH (avg) | B5: 254
A6: givers | B6: 180
A7: OI/hh | B7: =B3/B5 -> 1,299.37
A8: OI/giver | B8: =B3/B6 -> 1,833.56
A9: PRF Savings | B9: 270,639
A10: PRF Loans
A11: could borrow
A12: Deferred Maint | B12: $250K+
A13: Baptisms (10 year avg) | B13: 2
A14: Mass attendance | B14: 225
A15: Masses | B15: 1
A16: #/Mass | B16: =B14/B15 -> 225
A17: Priests | B17: 0.5
A18: PAA
A19: PAFF
A20: PAYM
A22: 3 year average | B22: ST PATRICK
A23: Ord Inc | B23: 329,444
A24: OI % all | B24: =B23/B46 -> 73%
A25: Building/Captial | B25: 0
A26: Appeal reb | B26: 10,321
A27: Debt Red | B27: 0
A28: Educ Rev | B28: 5,316
A29: Fundrasising Rev | B29: 25,811
A30: Fund % all | B30: =B29/B46 -> 6%
A31: BEQUESTS | B31: 4,487
A32: RESTRICTED | B32: 5,118
A33: OTHER GIFT | B33: 10,162
A34: GIFT REV | B34: 19,768
A35: Gift % of all | B35: =B34/B46 -> 4%
A36: INTEREST | B36: 7,068
A37: RENTAL | B37: 26,412
A38: OTHER BUS | B38: 2,378
A39: Bus Rev | B39: 35,859
A40: Bus Rev % all | B40: =B39/B46 -> 8%
A41: Program Rev | B41: 3,609
A42: Prog % all | B42: =B41/B46 -> 1%
A43: Pastrl Svcs | B43: 14,424
A44: ALL OTHER | B44: 11,524
A45: Other % all | B45: =B44/B46 -> 3%
A46: TOTAL INCOME | B46: 451,167
A48: PRF Savings;PRF Loan | B48: $377K;
A49: Deferred Maintenance | B49: deferred maintenance $250K+

Sheet Sacramental trends
B1: DID | C1: DID | D1: Deanery | E1: PID | F1: Parish Name
B2: 0 | C2: ='Cover sheet'!D1 -> 6 | D2: ='Cover sheet'!D2 -> South Seattle | E2: ='Cover sheet'!D3 -> St Patrick | F2: ='Cover sheet'!D4 -> Seattle
F3: 2000-01 | G3: 2001-02 | H3: 2002-03 | I3: 2003-04 | J3: 2004-05 | K3: 2005-06 | L3: 2006-07 | M3: 2007-08 | N3: 2008-09 | O3: 2009-10 | P3: 2010-11 | Q3: 2011-12 | R3: 2012-13 | S3: 2013-14 | T3: 2014-15 | U3: 2015-16 | V3: 2016-17 | W3: 2017-18 | X3: 2018-19 | Y3: 2019-20
E4: Infant baptisms | F4: 10 | G4: 6 | H4: 13 | I4: 13 | J4: 13 | K4: 5 | L4: 6 | M4: 4 | N4: 5 | O4: 5 | P4: 4 | Q4: 2 | R4: 6 | S4: 6 | T4: 3 | U4: 7 | V4: 5 | W4: 4 | X4: 1 | Y4: 3 | AA4: =(Y4-F4)/F4 -> -70%
E5: First Eucharist | F5: 9 | G5: 1 | H5: 6 | I5: 11 | J5: 5 | K5: 13 | L5: 6 | M5: 5 | N5: 0 | O5: 5 | P5: 5 | Q5: 5 | R5: 3 | S5: 7 | T5: 6 | U5: 1 | V5: 7 | W5: 10 | X5: 0 | Y5: 0 | AA5: =(Y5-F5)/F5 -> -100%
E6: Youth confirmed by Bishop | F6: 2 | G6: 0 | H6: 1 | I6: 0 | J6: 3 | K6: 4 | L6: 0 | M6: 0 | N6: 4 | O6: 0 | P6: 0 | Q6: 8 | R6: 0 | S6: 3 | T6: 0 | U6: 0 | V6: 4 | W6: 0 | X6: 0 | Y6: 16 | AA6: 700%
E7: Adult converts | F7: 5 | G7: 1 | H7: 4 | I7: 0 | J7: 6 | K7: 4 | L7: 2 | M7: 0 | N7: 2 | O7: 2 | P7: 2 | Q7: 0 | R7: 0 | S7: 1 | T7: 4 | U7: 0 | V7: 2 | W7: 1 | X7: 0 | Y7: 0 | AA7: -100%
E8: Marriages | F8: 8 | G8: 14 | H8: 14 | I8: 6 | J8: 7 | K8: 5 | L8: 2 | M8: 4 | N8: 10 | O8: 4 | P8: 2 | Q8: 2 | R8: 1 | S8: 2 | T8: 0 | U8: 5 | V8: 2 | W8: 3 | X8: 0 | Y8: 1 | AA8: -88%
E9: Funerals | F9: 9 | G9: 5 | H9: 4 | I9: 3 | J9: 5 | K9: 4 | L9: 3 | M9: 0 | N9: 3 | O9: 3 | P9: 10 | Q9: 2 | R9: 1 | S9: 1 | T9: 4 | U9: 4 | V9: 6 | W9: 1 | X9: 5 | Y9: 4 | AA9: -56%
F56: Marriage
F58: 2015-16
F59: 2016-17
F60: 2017-18
F61: 2018-19

Sheet Misc. Notes
